fUSD/lending_fUSD_20250826
["ID","MTS","AMOUNT","RATE_DAILY","PERIOD"]
[381421983,1756191042828,-500.0,0.00017534,2]
[381421984,1756191042838,-500.0,0.00017564,2]
[381421985,1756191042848,-1189.0,0.00017573,2]
[381421986,1756191042858,-500.0,0.00017602,2]
[381421987,1756191042868,-151.99,0.00017614,2]
[381421988,1756191042877,-168.0,0.00017626,2]
[381421989,1756191042888,-180.4,0.00017632,2]
[381421990,1756191042899,-500.0,0.00017639,2]
[381421991,1756191042909,-168.0,0.00017647,2]
[381421992,1756191042920,-150.0,0.00017648,2]
[381421993,1756191042929,-432.67695417,0.00017648,2]
[381421994,1756191042940,-150.0,0.00017648,2]
[381421995,1756191042950,-1593.81057441,0.00017648,2]
[381421996,1756191042959,-500.0,0.00017677,2]
[381421997,1756191042969,-168.0,0.00017698,2]
[381421998,1756191042979,-11572.95,0.000177,2]
[381421999,1756191042989,-500.0,0.00017714,2]
[381422000,1756191042999,-150.0,0.00017734,2]
[381422001,1756191043008,-829.95512445,0.00017735,2]
[381422002,1756191043018,-1057.78594293,0.00017736,2]
[381422003,1756191043028,-1285.6167614,0.00017737,2]
[381422004,1756191043038,-1513.44757988,0.00017738,2]
[381422005,1756191043048,-1741.27839836,0.00017739,2]
[381422006,1756191043058,-1969.10921683,0.00017739,2]
[381422007,1756191043067,-2196.94003531,0.0001774,2]
[381422008,1756191043077,-2424.77085379,0.00017741,2]
[381422009,1756191043087,-2652.60167227,0.00017742,2]
[381422010,1756191043096,-300.0,0.00017751,2]
[381422011,1756191043106,-500.0,0.00017752,2]
[381422012,1756191043115,-221731.25516235,0.00017752,2]
[381422013,1756191043125,-300.0,0.00017772,2]
[381422014,1756191043134,-300.0,0.00017772,2]
[381422015,1756191043143,-300.0,0.00017772,2]
[381422016,1756191043152,-300.0,0.00017772,2]
[381422017,1756191043161,-300.0,0.00017772,2]
[381422018,1756191043170,-300.0,0.00017772,2]
[381422019,1756191043179,-300.0,0.00017772,2]
[381422020,1756191043189,-500.0,0.00017789,2]
[381422021,1756191043198,-2006.48455946,0.000178,2]
[381422022,1756191043207,-882.0,0.00017801,2]
[381422023,1756191043217,-500.0,0.00017808,2]
[381422024,1756191043227,-500.0,0.00017808,2]
[381422025,1756191043236,-500.0,0.00017827,2]
[381422026,1756191043246,-1189.0,0.00017847,2]
[381422027,1756191043256,-364.0,0.0001785,2]
[381422028,1756191043266,-500.0,0.00017865,2]
[381422029,1756191043276,-168.0,0.00017891,2]
[381422030,1756191043285,-168.0,0.00017893,2]
[381422031,1756191043295,-2000.0,0.00017899,2]
[381422032,1756191043304,-298.75718287,0.000179,2]
[381422033,1756191043314,-500.0,0.00017902,2]
[381422034,1756191043324,-4307.9432076,0.00017909,2]
[381422035,1756191043333,-168.0,0.00017911,2]
[381422036,1756191043343,-150.0,0.00017934,2]
[381422037,1756191043352,-828.42240496,0.00017935,2]
[381422038,1756191043363,-1055.8324769,0.00017936,2]
[381422039,1756191043373,-1283.24254885,0.00017937,2]
[381422040,1756191043383,-1510.6526208,0.00017938,2]
[381422041,1756191043393,-1738.06269275,0.00017939,2]
[381422042,1756191043403,-1965.4727647,0.00017939,2]
[381422043,1756191043413,-500.0,0.0001794,2]
[381422044,1756191043422,-2192.88283665,0.0001794,2]
[381422045,1756191043432,-2420.2929086,0.00017941,2]
[381422046,1756191043442,-2647.70298054,0.00017942,2]
[381422047,1756191043451,-186.47760141,0.00017942,2]
[381422048,1756191043461,-2000.0,0.0001795,2]
[381422049,1756191043470,-300.0,0.0001795,2]
[381422050,1756191043480,-300.0,0.0001795,2]
[381422051,1756191043490,-300.0,0.0001795,2]
[381422052,1756191043500,-300.0,0.0001795,2]
[381422053,1756191043509,-300.0,0.0001795,2]
[381422054,1756191043518,-300.0,0.0001795,2]
[381422055,1756191043528,-300.0,0.0001795,2]
[381422056,1756191043538,-157660.23767758,0.00017951,2]
[381422057,1756191043547,-2000.0,0.00017951,2]
[381422058,1756191043557,-300.0,0.00017951,2]
[381422059,1756191043567,-300.0,0.00017951,2]
[381422060,1756191043576,-300.0,0.00017951,2]
[381422061,1756191043586,-300.0,0.00017951,2]
[381422062,1756191043596,-300.0,0.00017951,2]
[381422063,1756191043606,-391763.45958435,0.00017952,2]
[381422064,1756191043615,-151.0,0.00017952,2]
[381422065,1756191043624,-160.976683,0.00017952,2]
[381422066,1756191043634,-160.976683,0.00017952,2]
[381422067,1756191043643,-160.976683,0.00017952,2]
[381422068,1756191043653,-559.464306,0.00017952,2]
[381422069,1756191043662,-151.0,0.00017952,2]
[381422070,1756191043672,-509.512334,0.00017952,2]
[381422071,1756191043683,-559.464306,0.00017952,2]
[381422072,1756191043692,-160.976683,0.00017952,2]
[381422073,1756191043701,-151.0,0.00017952,2]
[381422074,1756191043711,-509.512334,0.00017952,2]
[381422075,1756191043721,-151.0,0.00017952,2]
[381422076,1756191043730,-190.145255,0.00017952,2]
[381422077,1756191043739,-509.512334,0.00017952,2]
[381422078,1756191043749,-151.0,0.00017952,2]
[381422079,1756191043763,-151.0,0.00017952,2]
[381422080,1756191043773,-151.0,0.00017952,2]
[381422081,1756191043783,-559.464306,0.00017952,2]
[381422082,1756191043794,-151.0,0.00017952,2]
[381422083,1756191043804,-509.512334,0.00017952,2]
[381422084,1756191043814,-559.464306,0.00017952,2]
[381422085,1756191043823,-151.0,0.00017952,2]
[381422086,1756191043833,-151.0,0.00017952,2]
[381422087,1756191043844,-223.937952,0.00017952,2]
[381422088,1756191043854,-3436.361304,0.00017952,2]
[381422089,1756191043864,-3436.361304,0.00017952,2]
[381422090,1756191043873,-205.44637,0.00017952,2]
[381422091,1756191043884,-205.44637,0.00017952,2]
[381422092,1756191043894,-3436.361304,0.00017952,2]
[381422093,1756191043903,-151.0,0.00017952,2]
[381422094,1756191043913,-3436.361304,0.00017952,2]
[381422095,1756191043923,-205.44637,0.00017952,2]
[381422096,1756191043932,-151.0,0.00017952,2]
[381422097,1756191043942,-151.0,0.00017952,2]
[381422098,1756191043952,-205.44637,0.00017952,2]
[381422099,1756191043961,-151.219948,0.00017952,2]
[381422100,1756191043971,-151.0,0.00017952,2]
[381422101,1756191043981,-500.0,0.00017973,2]
[381422102,1756191043990,-500.0,0.00017973,2]
[381422103,1756191044000,-500.0,0.00017973,2]
[381422104,1756191044010,-500.0,0.00017973,2]
[381422105,1756191044019,-500.0,0.00017973,2]
[381422106,1756191044028,-500.0,0.00017973,2]
[381422107,1756191044039,-500.0,0.00017973,2]
[381422108,1756191044049,-500.0,0.00017973,2]
[381422109,1756191044058,-500.0,0.00017973,2]
[381422110,1756191044068,-500.0,0.00017973,2]
[381422111,1756191044078,-500.0,0.00017973,2]
[381422112,1756191044088,-500.0,0.00017973,2]
[381422113,1756191044097,-500.0,0.00017973,2]
[381422114,1756191044107,-500.0,0.00017973,2]
[381422115,1756191044116,-500.0,0.00017973,2]
[381422116,1756191044126,-563.54231776,0.00017973,2]
[381422117,1756191044136,-500.0,0.00017973,2]
[381422118,1756191044145,-500.23610789,0.00017973,2]
[381422119,1756191044154,-500.0,0.00017973,2]
[381422120,1756191044164,-500.0,0.00017973,2]
[381422121,1756191044173,-500.0,0.00017973,2]
[381422122,1756191044183,-167.26669528,0.00017973,2]
[381422123,1756191044192,-500.0,0.00017973,2]
[381422124,1756191044201,-161.88879398,0.00017973,2]
[381422125,1756191044211,-500.09707482,0.00017973,2]
[381422126,1756191044221,-500.0,0.00017973,2]
[381422127,1756191044230,-500.0,0.00017973,2]
[381422128,1756191044240,-500.0,0.00017973,2]
[381422129,1756191044249,-500.0,0.00017973,2]
[381422130,1756191044258,-500.0,0.00017973,2]
[381422131,1756191044268,-500.0,0.00017973,2]
[381422132,1756191044280,-500.0,0.00017973,2]
[381422133,1756191044290,-500.0,0.00017973,2]
[381422134,1756191044300,-500.11200323,0.00017973,2]
[381422135,1756191044310,-500.0,0.00017973,2]
[381422136,1756191044320,-500.0,0.00017973,2]
[381422137,1756191044329,-500.0,0.00017973,2]
[381422138,1756191044339,-522.35770442,0.00017973,2]
[381422139,1756191044348,-500.0,0.00017973,2]
[381422140,1756191044358,-500.0,0.00017973,2]
[381422141,1756191044367,-528.57640829,0.00017973,2]
[381422142,1756191044377,-300.2994,0.00017973,2]
[381422143,1756191044386,-276.25912775,0.00017973,2]
[381422144,1756191044396,-500.0,0.00017973,2]
[381422145,1756191044406,-500.0,0.00017973,2]
[381422146,1756191044416,-500.0,0.00017973,2]
[381422147,1756191044425,-500.11651083,0.00017973,2]
[381422148,1756191044435,-503.75114274,0.00017973,2]
[381422149,1756191044445,-151.355471,0.00017973,2]
[381422150,1756191044454,-151.0,0.00017973,2]
[381422151,1756191044464,-269.531219,0.00017973,2]
[381422152,1756191044473,-202.99267,0.00017973,2]
[381422153,1756191044483,-202.99267,0.00017973,2]
[381422154,1756191044492,-202.99267,0.00017973,2]
[381422155,1756191044502,-202.99267,0.00017973,2]
[381422156,1756191044511,-151.121998,0.00017973,2]
[381422157,1756191044521,-151.0,0.00017973,2]
[381422158,1756191044530,-151.0,0.00017973,2]
[381422159,1756191044540,-151.0,0.00017973,2]
[381422160,1756191044549,-153.220532,0.00017973,2]
[381422161,1756191044559,-151.0,0.00017973,2]
[381422162,1756191044568,-223.779137,0.00017973,2]
[381422163,1756191044578,-223.779137,0.00017973,2]
[381422164,1756191044587,-223.779137,0.00017973,2]
[381422165,1756191044597,-151.0,0.00017973,2]
[381422166,1756191044606,-223.779137,0.00017973,2]
[381422167,1756191044616,-151.0,0.00017973,2]
[381422168,1756191044625,-202.676298,0.00017973,2]
[381422169,1756191044634,-151.0,0.00017973,2]
[381422170,1756191044644,-151.0,0.00017973,2]
[381422171,1756191044657,-151.0,0.00017973,2]
[381422172,1756191044666,-151.0,0.00017973,2]
[381422173,1756191044676,-151.0,0.00017973,2]
[381422174,1756191044686,-251.103413,0.00017973,2]
[381422175,1756191044696,-151.0,0.00017973,2]
[381422176,1756191044705,-151.0,0.00017973,2]
[381422177,1756191044716,-151.0,0.00017973,2]
[381422178,1756191044726,-151.0,0.00017973,2]
[381422179,1756191044735,-151.0,0.00017973,2]
[381422180,1756191044744,-151.0,0.00017973,2]
[381422181,1756191044755,-151.0,0.00017973,2]
[381422182,1756191044768,-186.682039,0.00017973,2]
[381422183,1756191044777,-186.682039,0.00017973,2]
[381422184,1756191044787,-186.682039,0.00017973,2]
[381422185,1756191044797,-151.0,0.00017973,2]
[381422186,1756191044806,-186.682039,0.00017973,2]
[381422188,1756191044815,-151.0,0.00017973,2]
[381422189,1756191044825,-151.0,0.00017973,2]
[381422190,1756191044834,-500.0,0.00017977,2]
[381422191,1756191044843,-895.16100258,0.00017986,2]
[381422192,1756191044854,-11896.6041393,0.00017986,2]
[381422193,1756191044863,-12152.0669483,0.0001799,2]
[381422194,1756191044872,-300.0,0.00017998,2]
[381422195,1756191044881,-300.0,0.00017998,2]
[381422196,1756191044891,-300.0,0.00017998,2]
[381422197,1756191044900,-300.0,0.00017998,2]
[381422198,1756191044909,-300.0,0.00017999,2]
[381422199,1756191044918,-151.0,0.00017999,2]
[381422200,1756191044927,-151.0,0.00017999,2]
[381422201,1756191044937,-151.0,0.00017999,2]
[381422202,1756191044946,-158.414728,0.00017999,2]
[381422203,1756191044955,-223.779137,0.00017999,2]
[381422204,1756191045318,-223.779137,0.00017999,2]
[381422205,1756191045328,-223.779137,0.00017999,2]
[381422206,1756191045338,-223.779137,0.00017999,2]
[381422207,1756191045347,-151.0,0.00017999,2]
[381422208,1756191045357,-151.0,0.00017999,2]
[381422209,1756191045366,-151.878341,0.00017999,2]
[381422210,1756191045375,-151.0,0.00017999,2]
[381422211,1756191045385,-151.0,0.00017999,2]
[381422212,1756191045395,-151.0,0.00017999,2]
[381422213,1756191045405,-177.616318,0.00017999,2]
[381422214,1756191045414,-151.0,0.00017999,2]
[381422215,1756191045424,-151.0,0.00017999,2]
[381422216,1756191045433,-151.0,0.00017999,2]
[381422217,1756191045442,-151.0,0.00017999,2]
[381422218,1756191045451,-151.0,0.00017999,2]
[381422219,1756191045461,-186.682039,0.00017999,2]
[381422220,1756191045470,-186.682039,0.00017999,2]
[381422221,1756191045479,-186.682039,0.00017999,2]
[381422222,1756191045488,-186.682039,0.00017999,2]
[381422223,1756191045497,-151.0,0.00017999,2]
[381422224,1756191045507,-151.0,0.00017999,2]
[381422225,1756191045516,-151.0,0.00017999,2]
[381422226,1756191045525,-151.0,0.00017999,2]
[381422227,1756191045534,-151.0,0.00017999,2]
[381422228,1756191045544,-151.0,0.00017999,2]
[381422229,1756191045554,-151.0,0.00017999,2]
[381422230,1756191045564,-151.0,0.00017999,2]
[381422231,1756191045573,-151.100181,0.00017999,2]
[381422232,1756191045583,-151.225343,0.00017999,2]
[381422233,1756191045592,-151.0,0.00017999,2]
[381422234,1756191045602,-151.0,0.00017999,2]
[381422235,1756191045612,-151.0,0.00017999,2]
[381422236,1756191045622,-151.0,0.00017999,2]
[381422237,1756191045632,-151.0,0.00017999,2]
[381422238,1756191045641,-151.0,0.00017999,2]
[381422239,1756191045651,-151.0,0.00017999,2]
[381422240,1756191045660,-151.445309,0.00017999,2]
[381422241,1756191045670,-151.0,0.00017999,2]
[381422242,1756191045679,-151.0,0.00017999,2]
[381422243,1756191045689,-151.0,0.00017999,2]
[381422244,1756191045698,-151.0,0.00017999,2]
[381422245,1756191045709,-151.0,0.00017999,2]
[381422246,1756191045719,-151.0,0.00017999,2]
[381422247,1756191045728,-151.0,0.00017999,2]
[381422248,1756191045737,-151.0,0.00017999,2]
[381422249,1756191045747,-151.0,0.00017999,2]
[381422250,1756191045763,-800.577712,0.00017999,2]
[381422251,1756191045772,-800.577712,0.00017999,2]
[381422252,1756191045782,-800.577712,0.00017999,2]
[381422253,1756191045791,-151.0,0.00017999,2]
[381422254,1756191045802,-800.577712,0.00017999,2]
[381422255,1756191045811,-227.84459479,0.00017999,2]
[381422256,1756191045820,-300.0,0.00017999,2]
[381422257,1756191045830,-151.0,0.00017999,2]
[381422258,1756191045840,-151.0,0.00017999,2]
[381422259,1756191045849,-151.0,0.00017999,2]
[381422260,1756191045859,-153.529299,0.00017999,2]
[381422261,1756191045868,-151.0,0.00017999,2]
[381422262,1756191045878,-153.217048,0.00017999,2]
[381422263,1756191045888,-162.683279,0.00017999,2]
[381422264,1756191045897,-162.683279,0.00017999,2]
[381422265,1756191045907,-162.683279,0.00017999,2]
[381422266,1756191045917,-367.090306,0.00017999,2]
[381422267,1756191045927,-162.683279,0.00017999,2]
[381422268,1756191045937,-367.090306,0.00017999,2]
[381422269,1756191045948,-151.0,0.00017999,2]
[381422270,1756191045958,-367.090306,0.00017999,2]
[381422271,1756191045967,-151.0,0.00017999,2]
[381422272,1756191045977,-367.090306,0.00017999,2]
[381422273,1756191045986,-151.0,0.00017999,2]
[381422274,1756191045996,-151.0,0.00017999,2]
[381422275,1756191046007,-151.0,0.00017999,2]
[381422276,1756191046016,-151.42327,0.00017999,2]
[381422277,1756191046026,-151.0,0.00017999,2]
[381422278,1756191046036,-151.0,0.00017999,2]
[381422279,1756191046046,-151.0,0.00017999,2]
[381422280,1756191046055,-300.0,0.00017999,2]
[381422281,1756191046065,-151.0,0.00017999,2]
[381422282,1756191046075,-151.0,0.00017999,2]
[381422283,1756191046084,-151.0,0.00017999,2]
[381422284,1756191046094,-151.0,0.00017999,2]
[381422285,1756191046104,-151.0,0.00017999,2]
[381422286,1756191046113,-151.0,0.00017999,2]
[381422287,1756191046123,-151.0,0.00017999,2]
[381422288,1756191046132,-151.0,0.00017999,2]
[381422289,1756191046142,-151.0,0.00017999,2]
[381422290,1756191046151,-151.0,0.00017999,2]
[381422291,1756191046162,-151.0,0.00017999,2]
[381422292,1756191046171,-151.0,0.00017999,2]
[381422293,1756191046182,-151.0,0.00017999,2]
[381422294,1756191046191,-151.0,0.00017999,2]
[381422295,1756191046202,-151.0,0.00017999,2]
[381422296,1756191046213,-151.0,0.00017999,2]
[381422298,1756191046224,-151.0,0.00017999,2]
[381422300,1756191046234,-285.620675,0.00017999,2]
[381422302,1756191046244,-151.0,0.00017999,2]
[381422304,1756191046254,-151.446104,0.00017999,2]
[381422306,1756191046264,-151.0,0.00017999,2]
[381422308,1756191046273,-151.0,0.00017999,2]
[381422310,1756191046283,-151.0,0.00017999,2]
[381422312,1756191046293,-151.0,0.00017999,2]
[381422314,1756191046303,-151.0,0.00017999,2]
[381422316,1756191046312,-151.0,0.00017999,2]
[381422318,1756191046322,-151.0,0.00017999,2]
[381422319,1756191046333,-151.0,0.00017999,2]
[381422320,1756191046343,-151.0,0.00017999,2]
[381422321,1756191046352,-151.0,0.00017999,2]
[381422322,1756191046362,-151.0,0.00017999,2]
[381422323,1756191046371,-151.0,0.00017999,2]
[381422324,1756191046382,-151.0,0.00017999,2]
[381422325,1756191046393,-151.0,0.00017999,2]
[381422326,1756191046404,-151.0,0.00017999,2]
[381422327,1756191046414,-151.0,0.00017999,2]
[381422328,1756191046424,-151.0,0.00017999,2]
[381422329,1756191046433,-151.0,0.00017999,2]
[381422330,1756191046443,-151.0,0.00017999,2]
[381422331,1756191046452,-153.463517,0.00017999,2]
[381422332,1756191046462,-151.0,0.00017999,2]
[381422333,1756191046471,-151.0,0.00017999,2]
[381422334,1756191046481,-151.0,0.00017999,2]
[381422335,1756191046491,-151.0,0.00017999,2]
[381422336,1756191046501,-216.911488,0.00017999,2]
[381422337,1756191046512,-356.769613,0.00017999,2]
[381422338,1756191046521,-216.911488,0.00017999,2]
[381422339,1756191046533,-356.769613,0.00017999,2]
[381422340,1756191046545,-216.911488,0.00017999,2]
[381422341,1756191046555,-356.769613,0.00017999,2]
[381422342,1756191046565,-216.911488,0.00017999,2]
[381422343,1756191046574,-151.0,0.00017999,2]
[381422344,1756191046583,-151.0,0.00017999,2]
[381422345,1756191046593,-151.0,0.00017999,2]
[381422346,1756191046602,-155.548692,0.00017999,2]
[381422347,1756191046612,-151.0,0.00017999,2]
[381422348,1756191046622,-151.0,0.00017999,2]
[381422349,1756191046632,-151.0,0.00017999,2]
[381422350,1756191046642,-151.0,0.00017999,2]
[381422351,1756191046652,-151.0,0.00017999,2]
[381422352,1756191046662,-153.934159,0.00017999,2]
[381422353,1756191046671,-826.849714,0.00017999,2]
[381422354,1756191046681,-826.849714,0.00017999,2]
[381422355,1756191046690,-219.591424,0.00017999,2]
[381422356,1756191046700,-826.849714,0.00017999,2]
[381422357,1756191046709,-749.404428,0.00017999,2]
[381422358,1756191046719,-749.404428,0.00017999,2]
[381422359,1756191046728,-826.849714,0.00017999,2]
[381422360,1756191046738,-242.868925,0.00017999,2]
[381422361,1756191046747,-242.868925,0.00017999,2]
[381422362,1756191046760,-151.0,0.00017999,2]
[381422363,1756191046769,-749.404428,0.00017999,2]
[381422364,1756191046778,-242.868925,0.00017999,2]
[381422365,1756191046789,-151.0,0.00017999,2]
[381422366,1756191046799,-749.404428,0.00017999,2]
[381422367,1756191046808,-242.868925,0.00017999,2]
[381422368,1756191046818,-151.0,0.00017999,2]
[381422369,1756191046828,-217.50369,0.00017999,2]
[381422370,1756191046837,-151.0,0.00017999,2]
[381422371,1756191046847,-151.845735,0.00017999,2]
[381422372,1756191046857,-151.0,0.00017999,2]
[381422373,1756191046867,-217.50369,0.00017999,2]
[381422374,1756191046877,-151.0,0.00017999,2]
[381422375,1756191046887,-217.50369,0.00017999,2]
[381422376,1756191046896,-151.0,0.00017999,2]
[381422377,1756191046906,-217.50369,0.00017999,2]
[381422378,1756191046916,-151.0,0.00017999,2]
[381422379,1756191046926,-151.0,0.00017999,2]
[381422380,1756191046935,-151.0,0.00017999,2]
[381422381,1756191046945,-274.912965,0.00017999,2]
[381422382,1756191046955,-1006.303287,0.00017999,2]
[381422383,1756191046964,-151.0,0.00017999,2]
[381422384,1756191046974,-1006.303287,0.00017999,2]
[381422385,1756191046984,-1006.303287,0.00017999,2]
[381422386,1756191046994,-151.0,0.00017999,2]
[381422387,1756191047003,-1006.303287,0.00017999,2]
[381422388,1756191047013,-151.0,0.00017999,2]
[381422389,1756191047023,-151.0,0.00017999,2]
[381422390,1756191047033,-151.0,0.00017999,2]
[381422391,1756191047043,-6527.11964832,0.00018,9]
[381422392,1756191047053,-3000.0,0.00018,2]
[381422393,1756191047063,-370259.93523372,0.00018,2]
[381422394,1756191047074,-1000.0,0.00018,2]
[381422395,1756191047084,-151.0,0.00018,2]
[381422396,1756191047094,-701558.16252424,0.00018,2]
[381422397,1756191047105,-108740.87023231,0.00018,2]
[381422398,1756191047115,-151.0,0.00018,2]
[381422399,1756191047125,-151.0,0.00018,2]
[381422400,1756191047134,-202.99267,0.00018,2]
[381422401,1756191047143,-202.99267,0.00018,2]
[381422402,1756191047152,-202.99267,0.00018,2]
[381422403,1756191047161,-202.99267,0.00018,2]
[381422404,1756191047171,-202.99267,0.00018,2]
[381422405,1756191047180,-202.99267,0.00018,2]
[381422406,1756191047190,-202.99267,0.00018,2]
[381422407,1756191047199,-202.99267,0.00018,2]
[381422408,1756191047209,-151.0,0.00018,2]
[381422409,1756191047218,-151.0,0.00018,2]
[381422410,1756191047228,-151.0,0.00018,2]
[381422411,1756191047238,-223.779137,0.00018,2]
[381422412,1756191047247,-223.779137,0.00018,2]
[381422413,1756191047256,-223.779137,0.00018,2]
[381422414,1756191047266,-223.779137,0.00018,2]
[381422415,1756191047275,-151.0,0.00018,2]
[381422416,1756191047284,-151.0,0.00018,2]
[381422417,1756191047293,-151.0,0.00018,2]
[381422418,1756191047302,-151.0,0.00018,2]
[381422419,1756191047311,-151.0,0.00018,2]
[381422420,1756191047320,-151.0,0.00018,2]
[381422421,1756191047329,-151.0,0.00018,2]
[381422422,1756191047339,-151.0,0.00018,2]
[381422423,1756191047348,-151.0,0.00018,2]
[381422424,1756191047358,-151.0,0.00018,2]
[381422425,1756191047367,-151.0,0.00018,2]
[381422426,1756191047378,-151.0,0.00018,2]
[381422427,1756191047388,-151.0,0.00018,2]
[381422428,1756191047397,-205.507995,0.00018,2]
[381422429,1756191047406,-186.682039,0.00018,2]
[381422430,1756191047416,-186.682039,0.00018,2]
[381422431,1756191047426,-186.682039,0.00018,2]
[381422432,1756191047435,-151.0,0.00018,2]
[381422433,1756191047445,-186.682039,0.00018,2]
[381422434,1756191047455,-151.0,0.00018,2]
[381422435,1756191047464,-151.0,0.00018,2]
[381422436,1756191047474,-151.0,0.00018,2]
[381422437,1756191047483,-151.0,0.00018,2]
[381422438,1756191047492,-151.0,0.00018,2]
[381422439,1756191047502,-151.0,0.00018,2]
[381422440,1756191047512,-256.250743,0.00018,2]
[381422441,1756191047522,-151.122392,0.00018,2]
[381422442,1756191047532,-158.670639,0.00018,2]
[381422443,1756191047542,-158.670639,0.00018,2]
[381422444,1756191047552,-158.670639,0.00018,2]
[381422445,1756191047561,-158.670639,0.00018,2]
[381422446,1756191047571,-158.670639,0.00018,2]
[381422447,1756191047580,-158.670639,0.00018,2]
[381422448,1756191047589,-158.670639,0.00018,2]
[381422449,1756191047598,-158.670639,0.00018,2]
[381422450,1756191047608,-151.0,0.00018,2]
[381422451,1756191047617,-151.0,0.00018,2]
[381422452,1756191047626,-151.0,0.00018,2]
[381422453,1756191047635,-151.0,0.00018,2]
[381422454,1756191047646,-151.0,0.00018,2]
[381422455,1756191047655,-151.0,0.00018,2]
[381422456,1756191047665,-151.0,0.00018,2]
[381422457,1756191047779,-151.933187,0.00018,2]
[381422458,1756191047789,-151.0,0.00018,2]
[381422459,1756191047799,-153.777366,0.00018,2]
[381422460,1756191047808,-151.0,0.00018,2]
[381422461,1756191047818,-151.0,0.00018,2]
[381422462,1756191047827,-151.0,0.00018,2]
[381422463,1756191047836,-151.0,0.00018,2]
[381422464,1756191047847,-151.0,0.00018,2]
[381422465,1756191047856,-151.0,0.00018,2]
[381422466,1756191047866,-151.0,0.00018,2]
[381422467,1756191047875,-151.0,0.00018,2]
[381422468,1756191047884,-151.0,0.00018,2]
[381422469,1756191047893,-151.0,0.00018,2]
[381422470,1756191047903,-255.230661,0.00018,2]
[381422471,1756191047912,-151.0,0.00018,2]
[381422472,1756191047921,-151.0,0.00018,2]
[381422473,1756191047932,-151.0,0.00018,2]
[381422474,1756191047942,-151.0,0.00018,2]
[381422475,1756191047952,-151.0,0.00018,2]
[381422476,1756191047961,-151.0,0.00018,2]
[381422477,1756191047970,-151.0,0.00018,2]
[381422478,1756191047981,-151.0,0.00018,2]
[381422479,1756191047991,-151.0,0.00018,2]
[381422480,1756191048002,-151.0,0.00018,2]
[381422481,1756191048011,-151.0,0.00018,2]
[381422482,1756191048020,-151.0,0.00018,2]
[381422483,1756191048029,-151.0,0.00018,2]
[381422484,1756191048039,-151.0,0.00018,2]
[381422485,1756191048048,-151.0,0.00018,2]
[381422486,1756191048057,-151.0,0.00018,2]
[381422487,1756191048066,-152.954581,0.00018,2]
[381422488,1756191048075,-151.425968,0.00018,2]
[381422489,1756191048085,-618.351297,0.00018,2]
[381422490,1756191048094,-618.351297,0.00018,2]
[381422491,1756191048104,-151.227893,0.00018,2]
[381422492,1756191048113,-404.497572,0.00018,2]
[381422493,1756191048123,-404.497572,0.00018,2]
[381422494,1756191048132,-151.0,0.00018,2]